[Event "FIDE U16 Olympiad_boards_1-80"]
[Site "Eindhoven, Netherlands"]
[Date "2023.08.13"]
[Round "1.18"]
[White "Palczert, Matyas"]
[Black "Mukhametkali, Merey"]
[Result "1-0"]
[TimeControl "2700+10"]
[WhiteElo "2163"]
[BlackElo "1792"]

1. e4 {[%clk 00:45:16]} {[%emt 00:00:03]} e6 {[%clk 00:45:16]} {[%emt
00:00:05]} 2. d4 {[%clk 00:45:21]} {[%emt 00:00:05]} d5 {[%clk 00:45:23]}
{[%emt 00:00:03]} 3. Nc3 {[%clk 00:45:26]} {[%emt 00:00:05]} Bb4 {[%clk
00:45:19]} {[%emt 00:00:14]} 4. Nge2 {[%clk 00:44:51]} {[%emt 00:00:45]} dxe4
{[%clk 00:45:14]} {[%emt 00:00:14]} 5. a3 {[%clk 00:44:53]} {[%emt 00:00:08]}
Bxc3+ {[%clk 00:45:10]} {[%emt 00:00:14]} 6. Nxc3 {[%clk 00:44:59]} {[%emt
00:00:04]} Nc6 {[%clk 00:45:12]} {[%emt 00:00:09]} 7. Bf4 {[%clk 00:44:28]}
{[%emt 00:00:41]} Nf6 {[%clk 00:38:20]} {[%emt 00:07:02]} 8. Bb5 {[%clk
00:44:28]} {[%emt 00:00:09]} O-O {[%clk 00:36:26]} {[%emt 00:02:05]} 9. Bxc6
{[%clk 00:43:36]} {[%emt 00:01:02]} bxc6 {[%clk 00:36:33]} {[%emt 00:00:02]} 10.
Bg5 {[%clk 00:41:51]} {[%emt 00:01:55]} h6 {[%clk 00:26:50]} {[%emt 00:09:53]}
11. Bxf6 {[%clk 00:41:02]} {[%emt 00:00:59]} Qxf6 {[%clk 00:26:57]} {[%emt
00:00:04]} 12. Nxe4 {[%clk 00:40:55]} {[%emt 00:00:18]} Qf4 {[%clk 00:24:23]}
{[%emt 00:02:39]} 13. Qf3 {[%clk 00:40:27]} {[%emt 00:00:42]} Qxf3 {[%clk
00:22:44]} {[%emt 00:01:49]} 14. gxf3 {[%clk 00:40:34]} {[%emt 00:00:03]} Rd8
{[%clk 00:22:51]} {[%emt 00:00:02]} 15. O-O-O {[%clk 00:40:25]} {[%emt
00:00:20]} Ba6 {[%clk 00:22:06]} {[%emt 00:00:53]} 16. Rhe1 {[%clk 00:36:47]}
{[%emt 00:03:49]} Rab8 {[%clk 00:16:01]} {[%emt 00:06:15]} 17. Nc5 {[%clk
00:36:02]} {[%emt 00:00:56]} Bc8 {[%clk 00:15:43]} {[%emt 00:00:28]} 18. c4
{[%clk 00:35:32]} {[%emt 00:00:40]} a5 {[%clk 00:14:02]} {[%emt 00:01:48]} 19.
Kc2 {[%clk 00:33:52]} {[%emt 00:01:52]} Rb6 {[%clk 00:12:01]} {[%emt 00:02:06]}
20. Kc3 {[%clk 00:32:45]} {[%emt 00:01:23]} Bd7 {[%clk 00:09:33]} {[%emt
00:02:36]} 21. b4 {[%clk 00:31:57]} {[%emt 00:01:00]} axb4+ {[%clk 00:09:25]}
{[%emt 00:00:18]} 22. axb4 {[%clk 00:32:03]} {[%emt 00:00:03]} Be8 {[%clk
00:08:36]} {[%emt 00:00:58]} 23. Ra1 {[%clk 00:31:46]} {[%emt 00:00:25]} Rbb8
{[%clk 00:05:26]} {[%emt 00:03:23]} 24. Ra7 {[%clk 00:30:48]} {[%emt 00:01:09]}
Rbc8 {[%clk 00:05:30]} {[%emt 00:00:05]} 25. Rea1 {[%clk 00:30:02]} {[%emt
00:00:56]} Kf8 {[%clk 00:04:42]} {[%emt 00:00:56]} 26. R1a6 {[%clk 00:28:10]}
{[%emt 00:02:05]} Ke7 {[%clk 00:03:07]} {[%emt 00:01:44]} 27. Nb7 {[%clk
00:27:07]} {[%emt 00:01:14]} Rd7 {[%clk 00:03:07]} {[%emt 00:00:08]} 28. Ra8
{[%clk 00:25:01]} {[%emt 00:02:19]} Rxa8 {[%clk 00:03:12]} {[%emt 00:00:05]} 29.
Rxa8 {[%clk 00:25:09]} {[%emt 00:00:02]} f6 {[%clk 00:02:27]} {[%emt 00:00:53]}
30. Nc5 {[%clk 00:23:42]} {[%emt 00:01:38]} Rd6 {[%clk 00:02:20]} {[%emt
00:00:14]} 31. Rc8 {[%clk 00:23:24]} {[%emt 00:00:31]} e5 {[%clk 00:01:37]}
{[%emt 00:00:54]} 32. dxe5 {[%clk 00:23:28]} {[%emt 00:00:06]} fxe5 {[%clk
00:01:46]} {[%emt 00:00:01]} 33. Rxc7+ {[%clk 00:23:33]} {[%emt 00:00:04]} Kf8
{[%clk 00:01:53]} {[%emt 00:00:02]} 34. Ne4 {[%clk 00:22:31]} {[%emt 00:01:12]}
Rd1 {[%clk 00:02:02]} {[%emt 00:00:02]} 35. c5 {[%clk 00:22:13]} {[%emt
00:00:28]} Rc1+ {[%clk 00:01:40]} {[%emt 00:00:30]} 36. Kd2 {[%clk 00:20:52]}
{[%emt 00:01:33]} Rb1 {[%clk 00:00:41]} {[%emt 00:01:09]} 37. Nd6 {[%clk
00:20:29]} {[%emt 00:00:33]} Bh5 {[%clk 00:00:47]} {[%emt 00:00:04]} 38. Kc3
{[%clk 00:15:55]} {[%emt 00:04:44]} Rc1+ {[%clk 00:00:36]} {[%emt 00:00:21]} 39.
Kb2 {[%emt 00:01:29]} Rf1 {[%clk 00:00:45]} 40. Rxc6 {[%clk 00:14:28]} {[%emt
00:00:20]} Rxf2+ {[%clk 00:00:53]} {[%emt 00:00:02]} 41. Kc1 {[%clk 00:14:28]}
{[%emt 00:00:09]} Bxf3 {[%clk 00:00:19]} {[%emt 00:00:44]} 42. Rc8+ {[%clk
00:12:56]} {[%emt 00:01:42]} Ke7 {[%clk 00:00:28]} {[%emt 00:00:01]} 43. Re8+
{[%clk 00:13:03]} {[%emt 00:00:04]} Kd7 {[%clk 00:00:29]} {[%emt 00:00:03]} 44.
Rxe5 {[%clk 00:10:10]} {[%emt 00:03:09]} Rxh2 {[%clk 00:00:28]} {[%emt
00:00:11]} 45. Re3 {[%clk 00:09:50]} {[%emt 00:00:29]} Bd5 {[%clk 00:00:19]}
{[%emt 00:00:19]} 46. b5 {[%clk 00:09:03]} {[%emt 00:00:57]} g5 {[%clk
00:00:12]} {[%emt 00:00:17]} 47. Rd3 {[%clk 00:09:04]} {[%emt 00:00:09]} Ke6
{[%clk 00:00:13]} {[%emt 00:00:10]} 48. b6 {[%clk 00:06:17]} {[%emt 00:02:57]}
Rh1+ {[%clk 00:00:18]} {[%emt 00:00:04]} 49. Kb2 {[%clk 00:06:05]} {[%emt
00:00:22]} Rh2+ {[%clk 00:00:17]} {[%emt 00:00:12]} 50. Kc3 {[%clk 00:06:05]}
{[%emt 00:00:09]} Rh1 {[%clk 00:00:13]} {[%emt 00:00:14]} 51. Nb5 {[%clk
00:04:51]} {[%emt 00:01:24]} Rc1+ {[%clk 00:00:14]} {[%emt 00:00:08]} 52. Kd4
{[%clk 00:04:56]} {[%emt 00:00:06]} Rc4+ {[%clk 00:00:12]} {[%emt 00:00:12]} 53.
Ke3 {[%clk 00:05:05]} {[%emt 00:00:01]} Rxc5 {[%clk 00:00:11]} {[%emt
00:00:12]} 54. Nc7+ {[%clk 00:05:08]} {[%emt 00:00:07]} Rxc7 {[%clk 00:00:15]}
{[%emt 00:00:05]} 55. bxc7 {[%clk 00:05:15]} {[%emt 00:00:02]} Bb7 {[%clk
00:00:24]} 56. Rd8 {[%clk 00:05:22]} {[%emt 00:00:04]} Kf5 {[%clk 00:00:30]}
{[%emt 00:00:04]} 57. Rb8 {[%clk 00:04:57]} {[%emt 00:00:35]} Ba6 {[%clk
00:00:39]} {[%emt 00:00:01]} 58. Rh8 {[%clk 00:05:01]} {[%emt 00:00:06]} Ke6
{[%clk 00:00:33]} {[%emt 00:00:16]} 59. Ke4 {[%emt 00:00:06]} 1-0

[Event "FIDE U16 Olympiad_boards_1-80"]
[Site "Eindhoven, Netherlands"]
[Date "2023.08.13"]
[Round "1.19"]
[White "Tleukhanov, Yerlan"]
[Black "Kolimar, Kristof Pal"]
[Result "0-1"]
[TimeControl "2700+10"]
[WhiteElo "1901"]
[BlackElo "2182"]

1. e4 {[%clk 00:45:17]} {[%emt 00:00:02]} c5 {[%clk 00:45:19]} {[%emt
00:00:02]} 2. Nf3 {[%clk 00:45:24]} {[%emt 00:00:02]} e6 {[%clk 00:45:25]}
{[%emt 00:00:04]} 3. d4 {[%clk 00:45:30]} {[%emt 00:00:04]} cxd4 {[%clk
00:45:33]} {[%emt 00:00:02]} 4. Nxd4 {[%clk 00:45:37]} {[%emt 00:00:02]} Nc6
{[%clk 00:45:37]} {[%emt 00:00:07]} 5. Nc3 {[%clk 00:45:42]} {[%emt 00:00:06]}
Qc7 {[%clk 00:45:45]} {[%emt 00:00:02]} 6. Be3 {[%clk 00:45:40]} {[%emt
00:00:11]} a6 {[%clk 00:45:53]} {[%emt 00:00:02]} 7. Qf3 {[%clk 00:45:43]}
{[%emt 00:00:07]} d6 {[%clk 00:43:09]} {[%emt 00:02:55]} 8. O-O-O {[%clk
00:43:41]} {[%emt 00:02:11]} Bd7 {[%clk 00:43:17]} {[%emt 00:00:02]} 9. Qg3
{[%clk 00:41:18]} {[%emt 00:02:33]} Rc8 {[%clk 00:35:08]} {[%emt 00:08:19]} 10.
Kb1 {[%clk 00:34:59]} {[%emt 00:06:29]} Nf6 {[%clk 00:32:40]} {[%emt 00:02:38]}
11. Nb3 {[%clk 00:27:54]} {[%emt 00:07:15]} Ne5 {[%clk 00:30:46]} {[%emt
00:02:04]} 12. f3 {[%clk 00:24:03]} {[%emt 00:04:01]} b5 {[%clk 00:27:48]}
{[%emt 00:03:09]} 13. a3 {[%clk 00:23:04]} {[%emt 00:01:08]} Nc4 {[%clk
00:23:21]} {[%emt 00:04:38]} 14. Bxc4 {[%clk 00:23:06]} {[%emt 00:00:07]} bxc4
{[%clk 00:21:26]} {[%emt 00:02:05]} 15. Nd4 {[%clk 00:22:05]} {[%emt 00:01:11]}
Qb7 {[%clk 00:18:53]} {[%emt 00:02:44]} 16. Bc1 {[%clk 00:20:27]} {[%emt
00:01:48]} Be7 {[%clk 00:17:34]} {[%emt 00:01:29]} 17. Qxg7 {[%clk 00:18:26]}
{[%emt 00:02:10]} Rg8 {[%clk 00:17:42]} {[%emt 00:00:02]} 18. Qh6 {[%clk
00:18:34]} {[%emt 00:00:02]} Rg6 {[%clk 00:16:18]} {[%emt 00:01:34]} 19. Qd2
{[%clk 00:16:45]} {[%emt 00:01:59]} Rb8 {[%clk 00:15:45]} {[%emt 00:00:44]} 20.
Ka2 {[%clk 00:10:20]} {[%emt 00:06:35]} h5 {[%clk 00:12:55]} {[%emt 00:03:00]}
21. Rhe1 {[%clk 00:10:07]} {[%emt 00:00:22]} h4 {[%clk 00:11:10]} {[%emt
00:01:56]} 22. f4 {[%clk 00:08:56]} {[%emt 00:01:21]} Nh5 {[%clk 00:09:32]}
{[%emt 00:01:48]} 23. Rf1 {[%clk 00:08:18]} {[%emt 00:00:48]} e5 {[%clk
00:06:40]} {[%emt 00:03:02]} 24. Nf5 {[%clk 00:07:22]} {[%emt 00:01:05]} Bxf5
{[%clk 00:06:22]} {[%emt 00:00:29]} 25. exf5 {[%clk 00:07:30]} {[%emt
00:00:01]} Rxg2 {[%clk 00:06:29]} {[%emt 00:00:03]} 26. Rf2 {[%clk 00:05:43]}
{[%emt 00:01:58]} Rxf2 {[%clk 00:03:50]} {[%emt 00:02:48]} 27. Qxf2 {[%clk
00:05:50]} {[%emt 00:00:03]} Nxf4 {[%clk 00:03:58]} {[%emt 00:00:02]} 28. Rg1
{[%clk 00:04:53]} {[%emt 00:01:06]} Kd7 {[%clk 00:03:41]} {[%emt 00:00:28]} 29.
Rg7 {[%clk 00:04:55]} {[%emt 00:00:08]} Nd5 {[%clk 00:02:49]} {[%emt 00:01:02]}
30. Nxd5 {[%clk 00:04:22]} {[%emt 00:00:43]} Qxd5 {[%clk 00:02:58]} {[%emt
00:00:01]} 31. f6 {[%clk 00:04:02]} {[%emt 00:00:31]} Bd8 {[%clk 00:02:13]}
{[%emt 00:00:54]} 32. Rg8 {[%clk 00:01:30]} {[%emt 00:02:43]} Bc7 {[%clk
00:01:22]} {[%emt 00:01:01]} 33. Rxb8 {[%clk 00:01:18]} {[%emt 00:00:22]} Bxb8
{[%clk 00:01:30]} {[%emt 00:00:02]} 34. Qxh4 {[%clk 00:00:51]} {[%emt
00:00:36]} c3+ {[%emt 00:00:28]} 35. b3 {[%clk 00:00:21]} {[%emt 00:00:39]} Qd1
{[%clk 00:00:47]} {[%emt 00:00:36]} 36. Qh3+ {[%clk 00:00:29]} {[%emt
00:00:02]} Kd8 {[%clk 00:00:50]} {[%emt 00:00:07]} 37. Qxc3 {[%clk 00:00:17]}
{[%emt 00:00:22]} Qxc1 {[%clk 00:00:52]} {[%emt 00:00:08]} 38. Qa5+ {[%clk
00:00:11]} {[%emt 00:00:16]} Bc7 {[%clk 00:00:58]} {[%emt 00:00:04]} 39. Qc3
{[%emt 00:00:12]} Qf4 {[%clk 00:00:37]} {[%emt 00:00:30]} 40. Qc6 {[%clk
00:00:16]} {[%emt 00:00:05]} Qxf6 {[%clk 00:00:36]} {[%emt 00:00:11]} 41. Qxa6
{[%clk 00:00:18]} {[%emt 00:00:08]} Qf2 {[%clk 00:00:34]} {[%emt 00:00:11]} 42.
Qa8+ {[%clk 00:00:19]} {[%emt 00:00:09]} Ke7 {[%clk 00:00:41]} {[%emt
00:00:03]} 43. Qc6 {[%clk 00:00:21]} {[%emt 00:00:07]} Qc5 {[%clk 00:00:43]}
{[%emt 00:00:09]} 44. Qe4 {[%clk 00:00:28]} {[%emt 00:00:03]} d5 {[%clk
00:00:37]} {[%emt 00:00:16]} 45. Qh4+ {[%clk 00:00:34]} {[%emt 00:00:04]} Kd7
{[%clk 00:00:28]} {[%emt 00:00:19]} 46. Qg4+ {[%clk 00:00:36]} {[%emt
00:00:08]} Kc6 {[%clk 00:00:34]} {[%emt 00:00:04]} 47. Qe2 {[%clk 00:00:25]}
{[%emt 00:00:21]} e4 {[%clk 00:00:37]} {[%emt 00:00:08]} 48. h4 {[%clk
00:00:26]} {[%emt 00:00:07]} Be5 {[%clk 00:00:39]} {[%emt 00:00:08]} 49. Qa6+
{[%clk 00:00:18]} {[%emt 00:00:19]} Kd7 {[%clk 00:00:42]} {[%emt 00:00:07]} 50.
Qb7+ {[%clk 00:00:25]} {[%emt 00:00:03]} Ke6 {[%clk 00:00:46]} {[%emt
00:00:06]} 51. Qa6+ {[%clk 00:00:32]} {[%emt 00:00:03]} Ke7 {[%clk 00:00:34]}
{[%emt 00:00:23]} 52. Qb7+ {[%clk 00:00:27]} {[%emt 00:00:15]} Qc7 {[%clk
00:00:43]} 53. Qb4+ {[%clk 00:00:31]} {[%emt 00:00:06]} Ke6 {[%clk 00:00:47]}
{[%emt 00:00:06]} 54. Kb1 {[%clk 00:00:33]} {[%emt 00:00:08]} Qc3 {[%clk
00:00:32]} {[%emt 00:00:25]} 55. Qb6+ {[%clk 00:00:37]} {[%emt 00:00:06]} Kf5
{[%clk 00:00:32]} {[%emt 00:00:10]} 56. Qf2+ {[%clk 00:00:43]} {[%emt
00:00:04]} Qf3 {[%clk 00:00:36]} {[%emt 00:00:05]} 57. Qg1 {[%clk 00:00:35]}
{[%emt 00:00:18]} e3 {[%clk 00:00:28]} {[%emt 00:00:19]} 58. Ka2 {[%clk
00:00:17]} {[%emt 00:00:28]} Qf2 {[%clk 00:00:22]} {[%emt 00:00:15]} 59. Qg5+
{[%clk 00:00:22]} {[%emt 00:00:05]} Ke6 {[%clk 00:00:31]} {[%emt 00:00:01]} 60.
Qg4+ {[%clk 00:00:26]} {[%emt 00:00:06]} Qf5 {[%clk 00:00:40]} {[%emt
00:00:01]} 61. Qe2 {[%clk 00:00:32]} {[%emt 00:00:04]} Qf2 {[%clk 00:00:25]}
{[%emt 00:00:25]} 62. Qa6+ {[%clk 00:00:24]} {[%emt 00:00:18]} Kf5 {[%clk
00:00:29]} {[%emt 00:00:06]} 63. Qd3+ {[%clk 00:00:27]} {[%emt 00:00:07]} Kf4
{[%clk 00:00:37]} {[%emt 00:00:02]} 64. b4 {[%clk 00:00:24]} {[%emt 00:00:14]}
e2 {[%clk 00:00:35]} {[%emt 00:00:12]} 0-1

[Event "FIDE U16 Olympiad_boards_1-80"]
[Site "Eindhoven, Netherlands"]
[Date "2023.08.13"]
[Round "1.20"]
[White "Giang, Tran Nam"]
[Black "Madi, Aidana"]
[Result "1-0"]
[TimeControl "2700+10"]
[WhiteElo "2098"]
[BlackElo "1499"]

1. e4 {[%clk 00:45:18]} {[%emt 00:00:02]} c6 {[%clk 00:45:19]} {[%emt
00:00:02]} 2. Nf3 {[%clk 00:45:25]} {[%emt 00:00:02]} d5 {[%clk 00:45:26]}
{[%emt 00:00:03]} 3. Nc3 {[%clk 00:45:31]} {[%emt 00:00:02]} Bg4 {[%clk
00:45:29]} {[%emt 00:00:09]} 4. h3 {[%clk 00:45:39]} {[%emt 00:00:02]} Bxf3
{[%clk 00:45:37]} {[%emt 00:00:02]} 5. Qxf3 {[%clk 00:45:47]} {[%emt 00:00:01]}
e6 {[%clk 00:45:44]} {[%emt 00:00:04]} 6. d3 {[%clk 00:45:53]} {[%emt
00:00:03]} Nd7 {[%clk 00:45:42]} {[%emt 00:00:12]} 7. g3 {[%clk 00:45:27]}
{[%emt 00:00:37]} Bb4 {[%clk 00:45:31]} {[%emt 00:00:21]} 8. Bd2 {[%clk
00:45:04]} {[%emt 00:00:33]} d4 {[%clk 00:45:05]} {[%emt 00:00:37]} 9. Nb1
{[%clk 00:45:04]} {[%emt 00:00:09]} Qb6 {[%clk 00:45:13]} {[%emt 00:00:02]} 10.
c3 {[%clk 00:40:51]} {[%emt 00:04:24]} dxc3 {[%clk 00:40:29]} {[%emt 00:04:54]}
11. Nxc3 {[%clk 00:39:26]} {[%emt 00:01:34]} Ngf6 {[%clk 00:39:33]} {[%emt
00:01:06]} 12. a3 {[%clk 00:36:00]} {[%emt 00:03:36]} Ne5 {[%clk 00:38:23]}
{[%emt 00:01:20]} 13. Qe2 {[%clk 00:35:29]} {[%emt 00:00:41]} Be7 {[%clk
00:36:10]} {[%emt 00:02:23]} 14. Be3 {[%clk 00:34:00]} {[%emt 00:01:39]} Qa5
{[%clk 00:33:54]} {[%emt 00:02:27]} 15. f4 {[%clk 00:32:11]} {[%emt 00:01:58]}
Ned7 {[%clk 00:31:54]} {[%emt 00:02:09]} 16. Bg2 {[%clk 00:31:07]} {[%emt
00:01:15]} e5 {[%clk 00:24:49]} {[%emt 00:07:15]} 17. O-O {[%clk 00:28:19]}
{[%emt 00:02:58]} O-O {[%clk 00:19:11]} {[%emt 00:05:48]} 18. f5 {[%clk
00:25:49]} {[%emt 00:02:40]} Bc5 {[%clk 00:18:04]} {[%emt 00:01:17]} 19. Kh2
{[%clk 00:25:35]} {[%emt 00:00:24]} Bxe3 {[%clk 00:17:54]} {[%emt 00:00:20]} 20.
Qxe3 {[%clk 00:25:43]} {[%emt 00:00:02]} Qb6 {[%clk 00:16:20]} {[%emt
00:01:45]} 21. Qe2 {[%clk 00:24:12]} {[%emt 00:01:40]} Nc5 {[%emt 00:03:33]} 22.
b4 {[%clk 00:23:53]} {[%emt 00:00:28]} Nb3 {[%clk 00:12:51]} {[%emt 00:00:17]}
23. Rab1 {[%clk 00:23:56]} {[%emt 00:00:06]} Nd4 {[%clk 00:12:59]} {[%emt
00:00:03]} 24. Qd1 {[%clk 00:23:39]} {[%emt 00:00:26]} a5 {[%clk 00:11:50]}
{[%emt 00:01:20]} 25. g4 {[%clk 00:19:54]} {[%emt 00:03:55]} axb4 {[%clk
00:11:43]} {[%emt 00:00:17]} 26. g5 {[%clk 00:17:08]} {[%emt 00:02:56]} Ne8
{[%clk 00:10:14]} {[%emt 00:01:39]} 27. axb4 {[%clk 00:15:31]} {[%emt
00:01:47]} Ra3 {[%clk 00:09:37]} {[%emt 00:00:47]} 28. Na4 {[%clk 00:14:05]}
{[%emt 00:01:36]} Qb5 {[%clk 00:08:57]} {[%emt 00:00:48]} 29. Nc5 {[%clk
00:12:51]} {[%emt 00:01:25]} b6 {[%clk 00:08:52]} {[%emt 00:00:16]} 30. Nd7
{[%clk 00:11:38]} {[%emt 00:01:22]} Rxd3 {[%clk 00:08:51]} {[%emt 00:00:12]} 31.
Qg4 {[%clk 00:08:32]} {[%emt 00:03:15]} Nf3+ {[%clk 00:08:19]} {[%emt
00:00:42]} 32. Rxf3 {[%clk 00:07:48]} {[%emt 00:00:55]} Rxd7 {[%clk 00:08:28]}
33. Rf2 {[%clk 00:05:36]} {[%emt 00:02:21]} Rd4 {[%clk 00:07:58]} {[%emt
00:00:41]} 34. h4 {[%clk 00:03:52]} {[%emt 00:01:54]} f6 {[%clk 00:06:21]}
{[%emt 00:01:47]} 35. h5 {[%clk 00:01:49]} {[%emt 00:02:13]} fxg5 {[%clk
00:04:44]} {[%emt 00:01:47]} 36. Qxg5 {[%clk 00:01:56]} {[%emt 00:00:02]} h6
{[%clk 00:04:22]} {[%emt 00:00:33]} 37. Qe7 {[%clk 00:01:59]} {[%emt 00:00:06]}
Nf6 {[%clk 00:04:19]} {[%emt 00:00:14]} 38. Bf1 {[%clk 00:01:09]} {[%emt
00:01:00]} Qa4 {[%clk 00:03:33]} {[%emt 00:00:56]} 39. Qe6+ {[%clk 00:00:56]}
{[%emt 00:00:23]} Kh8 {[%clk 00:03:32]} {[%emt 00:00:11]} 40. Ra2 {[%clk
00:00:52]} {[%emt 00:00:13]} Qxa2+ {[%clk 00:01:28]} {[%emt 00:02:15]} 41. Qxa2
{[%clk 00:01:01]} {[%emt 00:00:01]} Rfd8 {[%clk 00:01:37]} 42. Bg2 {[%clk
00:00:43]} {[%emt 00:00:28]} Nxh5 {[%clk 00:01:32]} {[%emt 00:00:16]} 43. Rb2
{[%clk 00:00:38]} {[%emt 00:00:14]} Nf4 {[%clk 00:01:38]} {[%emt 00:00:04]} 44.
Bf3 {[%clk 00:00:16]} {[%emt 00:00:32]} Rd3 {[%clk 00:01:12]} {[%emt 00:00:35]}
45. Rf2 {[%clk 00:00:25]} {[%emt 00:00:02]} R3d4 {[%clk 00:01:00]} {[%emt
00:00:23]} 46. Qf7 {[%clk 00:00:27]} {[%emt 00:00:07]} R4d7 {[%clk 00:01:00]}
{[%emt 00:00:10]} 47. Qc4 {[%clk 00:00:30]} {[%emt 00:00:07]} Rd4 {[%clk
00:00:34]} {[%emt 00:00:36]} 48. Qxc6 {[%clk 00:00:31]} {[%emt 00:00:09]} Rxb4
{[%clk 00:00:41]} {[%emt 00:00:03]} 49. Qc7 {[%clk 00:00:27]} {[%emt 00:00:14]}
Rd3 {[%clk 00:00:16]} {[%emt 00:00:35]} 50. Qxe5 {[%clk 00:00:20]} {[%emt
00:00:17]} 1-0